bitfinex-derivatives/quotes_BTCF0:USTF0_20251225
["timestamp","ask_amount","ask_price","bid_price","bid_amount"]
[1766697616432,0.05696,88033.0,88018.0,0.0113691]
[1766697619539,0.05696,88033.0,88015.0,0.00017045]
[1766697619540,0.05696,88033.0,88020.0,0.0113689]
[1766697620733,0.05696,88033.0,88013.0,0.04149935]
[1766697621738,0.00017045,88032.0,88014.0,0.00017045]
[1766697622237,0.00017045,88032.0,88019.0,0.011369]
[1766697627947,0.00017045,88032.0,88013.0,0.0270388]
[1766697629149,0.00017045,88032.0,88014.0,0.00017045]
[1766697629340,0.00017045,88032.0,88018.0,0.0113692]
[1766697632441,0.01153785,88032.0,88018.0,0.0113692]
[1766697632643,0.00017045,88032.0,88014.0,0.00017045]
[1766697633544,0.00017045,88032.0,88010.0,0.0113702]
[1766697633545,0.0113685,88024.0,88010.0,0.0113702]
[1766697633844,0.0113683,88025.0,88011.0,0.0113701]
[1766697638855,0.011368,88028.0,88013.0,0.0113698]
[1766697639159,0.0113682,88026.0,88013.0,0.0113698]
[1766697644346,0.0113682,88026.0,88010.0,0.0113701]
[1766697645569,0.00017045,88032.0,88009.0,0.00017045]
[1766697645750,0.011369,88020.0,88009.0,0.00017045]
[1766697646066,0.0113704,88009.0,87995.0,0.09664]
[1766697646247,0.05692,88020.0,87995.0,0.03]
[1766697646446,0.0113706,88008.0,87995.0,0.03]
[1766697649759,0.0113706,88008.0,87995.0,0.033]
[1766697655862,0.00017045,88010.0,87996.0,0.011372]
[1766697656056,0.00017045,88010.0,87996.0,0.041372]
[1766697656247,0.00017045,88010.0,87999.0,0.0113716]
[1766697658566,0.00017045,88010.0,87996.0,0.011372]
[1766697658755,0.00017045,88010.0,87996.0,0.041372]
[1766697663178,0.01154075,88010.0,87996.0,0.041372]
[1766697666562,0.00017045,88010.0,87996.0,0.03]
[1766697668274,0.0113704,88009.0,87996.0,0.03]
[1766697675866,0.0113709,88005.0,87996.0,0.03]
[1766697681980,0.0113706,88008.0,87996.0,0.03]
[1766697682182,0.01154075,88010.0,87997.0,0.0113719]
[1766697682481,0.01154075,88010.0,87997.0,0.0413719]
[1766697684378,0.00017045,88010.0,87997.0,0.03]
[1766697684582,0.05696,88014.0,88003.0,0.0113711]
[1766697684977,0.02694,88014.0,88005.0,0.0113709]
[1766697685287,0.01196,88016.0,88005.0,0.03]
[1766697685488,0.07281375,88019.0,88005.0,0.03]
[1766697686084,0.06144455,88019.0,88006.0,0.0113708]
[1766697686283,0.06144455,88019.0,88006.0,0.0413708]
[1766697686586,0.00017045,88019.0,88006.0,0.0413708]
[1766697690567,4.5e-07,88019.0,88006.0,0.0413708]
[1766697690772,0.0113673,88033.0,88006.0,0.0413708]
[1766697690773,0.0113684,88025.0,88006.0,0.03]
[1766697690972,0.0113686,88023.0,88006.0,0.03]
[1766697691684,0.01153905,88023.0,88006.0,0.03017045]
[1766697692382,0.0113689,88021.0,88006.0,0.01154115]
[1766697693985,0.10240325,88020.0,88006.0,0.01154115]
[1766697694487,0.0113689,88021.0,88006.0,0.01154115]
[1766697695390,0.0113689,88021.0,88006.0,0.04154115]
[1766697696689,0.0113689,88021.0,88006.0,0.01154115]
[1766697696992,0.0113691,88019.0,88006.0,0.01154115]
[1766697697800,0.0113691,88019.0,88006.0,0.00017045]
[1766697699387,0.0113691,88019.0,88005.0,0.05950135]
[1766697706194,0.0113694,88017.0,88005.0,0.04813045]
[1766697706491,0.0113694,88017.0,88005.0,0.02513045]
[1766697713496,0.0113694,88017.0,88005.0,0.01413045]
[1766697720602,0.0113694,88017.0,88005.0,0.00013045]
[1766697724100,0.011369,88020.0,88005.0,0.00013045]
[1766697727005,0.06154786,88023.0,88005.0,0.00013045]
[1766697727604,0.0113692,88019.0,88003.0,0.05692]
[1766697727806,0.0113694,88017.0,88003.0,0.05692]
[1766697727997,0.0113694,88017.0,88003.0,0.06692]
[1766697729108,0.0113694,88017.0,88003.0,0.1636]
[1766697729303,0.0113694,88017.0,88004.0,0.011371]
[1766697729602,0.0113694,88017.0,87985.0,0.0113734]
[1766697729603,0.0113722,87995.0,87984.0,0.05692]
[1766697729793,0.0113725,87993.0,87984.0,0.03]
[1766697729999,0.10240325,88000.0,87983.0,8e-08]
[1766697730000,0.0113734,87986.0,87983.0,8e-08]
[1766697730804,0.011373,87989.0,87983.0,8e-08]
[1766697731307,0.00017045,87993.0,87983.0,8e-08]
[1766697731498,0.0113726,87992.0,87983.0,0.03000008]
[1766697733105,0.0113726,87992.0,87983.0,8e-08]
[1766697734821,0.0113726,87992.0,87976.0,0.04146513]
[1766697735119,0.0113726,87992.0,87976.0,0.07146513]
[1766697738109,0.0113729,87990.0,87976.0,0.06009053]
[1766697739323,0.00017045,87993.0,87980.0,0.10240325]
[1766697739528,0.0113719,87998.0,87981.0,0.011374]
[1766697739731,0.0113719,87998.0,87981.0,0.041374]
[1766697740329,0.0113715,88001.0,87983.0,0.0113737]
[1766697740530,0.00017045,87998.0,87984.0,0.05696]
[1766697740723,4.5e-07,87998.0,87985.0,0.0113734]
[1766697741040,4.5e-07,87998.0,87985.0,0.0413734]
[1766697742637,4.5e-07,87998.0,87985.0,0.1380534]
[1766697743725,4.5e-07,87998.0,87985.0,0.1080534]
[1766697743937,4.5e-07,87998.0,87987.0,0.0113731]
[1766697747443,4.5e-07,87998.0,87987.0,0.0413731]
[1766697747739,4.5e-07,87998.0,87987.0,0.0113731]
[1766697747941,4.5e-07,87998.0,87987.0,0.0413731]
[1766697748336,4.5e-07,87998.0,87987.0,0.0113731]
[1766697748640,4.5e-07,87998.0,87987.0,0.0413731]
[1766697749241,4.5e-07,87998.0,87987.0,0.0113731]
[1766697752839,4.5e-07,87998.0,87985.0,0.09668]
[1766697752840,0.0113721,87996.0,87985.0,0.09668]
[1766697753437,0.0113723,87994.0,87985.0,0.09668]
[1766697753632,4.5e-07,87998.0,87985.0,0.09668]
[1766697754343,0.0113723,87995.0,87985.0,0.09668]
[1766697754547,0.0113721,87996.0,87985.0,0.09668]
[1766697754839,4.5e-07,87998.0,87985.0,0.09668]
[1766697755045,0.0113723,87994.0,87985.0,0.09668]
[1766697756146,4.5e-07,87998.0,87985.0,0.09668]
[1766697756440,0.0113725,87993.0,87985.0,0.09668]
[1766697757144,0.0113721,87996.0,87985.0,0.09668]
[1766697759148,4.5e-07,87998.0,87985.0,0.12668]
[1766697759939,0.06137741,88010.0,87999.0,0.0113716]
[1766697760139,0.0022724,88013.0,88001.0,0.0113714]
[1766697761042,0.0022724,88013.0,87995.0,0.15364]
[1766697761043,0.0022724,88013.0,87998.0,0.00017045]
[1766697761641,0.0113703,88010.0,87998.0,0.00017045]
[1766697762052,0.0136423,88013.0,87998.0,0.00017045]
[1766697762243,0.0136423,88013.0,87999.0,0.00741]
[1766697767349,0.0113702,88011.0,87999.0,0.00741]
[1766697767751,0.0113704,88009.0,87999.0,0.00741]
[1766697768851,0.0022724,88013.0,87998.0,0.00017045]
[1766697769856,0.011371,88004.0,87998.0,0.00017045]
[1766697770950,0.01137,88012.0,87998.0,0.00017045]
[1766697771250,0.0113715,88001.0,87998.0,5e-08]
[1766697776149,0.0113711,88004.0,87998.0,5e-08]
[1766697779965,0.0113707,88007.0,87998.0,5e-08]
[1766697780459,0.0113709,88005.0,87998.0,5e-08]
[1766697782363,0.0113713,88003.0,87998.0,5e-08]
[1766697786566,0.0113708,88006.0,87998.0,5e-08]
[1766697788156,0.06137741,88010.0,87998.0,5e-08]
[1766697788361,0.0113715,88001.0,87998.0,5e-08]
[1766697806877,0.0113719,87998.0,87983.0,0.08568005]
[1766697807078,0.05692,87997.0,87983.0,0.08568005]
[1766697808389,0.05692,87997.0,87983.0,0.09705375]
[1766697810689,0.05692,87997.0,87985.0,0.0113735]
[1766697810892,0.05692,87997.0,87985.0,0.0413735]
[1766697811889,0.05692,87997.0,87985.0,0.0113735]
[1766697812291,0.068292,87997.0,87983.0,0.08568005]
[1766697812891,0.05692,87997.0,87984.0,0.0113736]
[1766697813090,0.05692,87997.0,87983.0,0.08568005]
[1766697813091,0.0113721,87996.0,87983.0,0.08568005]
[1766697814579,0.0113721,87996.0,87983.0,0.09705375]
[1766697824896,0.0113723,87994.0,87983.0,0.08568005]
[1766697828103,0.068292,87997.0,87983.0,0.08568005]
[1766697837115,0.068292,87997.0,87984.0,0.0113736]
[1766697838714,0.05692,87997.0,87984.0,0.0113736]
[1766697839532,0.0113721,87996.0,87984.0,0.0113736]
[1766697841819,0.0113721,87996.0,87983.0,0.08568005]
[1766697844110,0.0113721,87996.0,87984.0,0.0113736]
[1766697844417,0.0113721,87996.0,87983.0,0.08568005]
[1766697845815,0.0113721,87996.0,87983.0,0.09705375]
[1766697847120,0.05692,87997.0,87985.0,0.0113735]
[1766697847505,0.00017045,87998.0,87983.0,0.08568005]
[1766697847709,0.00017045,87998.0,87984.0,0.0113735]
[1766697848009,0.00017045,87998.0,87986.0,0.0113733]
[1766697853826,0.00017045,87998.0,87983.0,0.09705365]
[1766697854019,0.00017045,87998.0,87983.0,0.12705365]
[1766697855122,0.0113719,87997.0,87983.0,0.12705365]
[1766697864625,0.0113719,87997.0,87985.0,0.0113735]
[1766697867034,0.00017045,87998.0,87985.0,0.0113735]
[1766697867233,0.00017045,87998.0,87985.0,0.0413735]
[1766697867635,4.5e-07,87998.0,87988.0,0.10245532]
[1766697867930,0.0113704,88009.0,87993.0,0.0113724]
[1766697868133,0.0113704,88009.0,87993.0,0.0982924]
[1766697868435,0.0113704,88009.0,87993.0,0.0682924]
[1766697871636,0.0113704,88009.0,87995.0,0.0113721]
[1766697871836,0.0113707,88007.0,87993.0,0.05692]
[1766697872726,0.0113709,88005.0,87993.0,0.05692]
[1766697873839,0.0113706,88008.0,87993.0,0.05692]
[1766697874336,0.0113706,88008.0,87993.0,0.0682924]
[1766697876740,0.10262577,88010.0,87993.0,0.0682924]
[1766697878048,0.00017045,88010.0,87993.0,0.0682924]
[1766697879244,0.0113707,88007.0,87993.0,0.0682924]
[1766697895050,0.01154085,88010.0,87995.0,0.0113722]
[1766697896047,0.01154085,88010.0,87997.0,0.0113719]
[1766697896437,0.00017045,88010.0,87999.0,0.0113716]
[1766697896643,0.0022724,88013.0,88001.0,0.0113714]
[1766697896837,0.0022724,88013.0,88001.0,0.03]
[1766697897041,0.11280672,88033.0,88001.0,0.03]
[1766697897042,0.05692,88021.0,88008.0,0.0113705]
[1766697897249,0.0113689,88021.0,88005.0,0.0113708]
[1766697898748,0.00017045,88022.0,88011.0,0.0113701]
[1766697900041,0.0682877,88030.0,88013.0,0.0113698]
[1766697901147,0.06845815,88030.0,88013.0,0.0113698]
[1766697901656,0.011368,88028.0,88013.0,0.0113698]
[1766697901845,0.0113682,88026.0,88010.0,0.0113702]
[1766697908963,0.0113685,88024.0,88007.0,0.09668]
[1766697909263,0.0113685,88024.0,88007.0,0.12668]
[1766697910155,0.0113685,88024.0,88008.0,0.0113705]
[1766697913763,0.0113685,88024.0,88007.0,0.09668]
[1766697913965,0.0113682,88027.0,88007.0,0.12668]
[1766697914162,0.0113682,88027.0,88012.0,0.01137]
[1766697915251,0.06845825,88030.0,88014.0,0.0113697]
[1766697923581,0.011368,88028.0,88014.0,0.0113697]
[1766697924390,0.011368,88028.0,88011.0,0.01137]
[1766697924683,0.05709045,88030.0,88011.0,0.01137]
[1766697925086,0.0113684,88025.0,88011.0,0.01137]
[1766697939292,0.011368,88028.0,88011.0,0.01137]
[1766697945201,0.0113682,88026.0,88011.0,0.01137]
[1766697947006,0.0113682,88026.0,88013.0,0.0113698]
[1766697951103,0.0113679,88029.0,88015.0,0.0113695]
[1766697952204,0.0113679,88029.0,88016.0,0.00739]
[1766697952506,0.05709045,88030.0,88016.0,0.00739]
[1766697952706,0.05709045,88030.0,88017.0,0.0113693]
[1766697955210,0.06845815,88030.0,88017.0,0.0113693]
[1766697957814,0.05709045,88030.0,88017.0,0.0113693]
[1766697958003,0.05709045,88030.0,88019.0,0.0113691]
[1766697962313,0.05709045,88030.0,88016.0,0.00739]
[1766697963215,0.05709045,88030.0,88019.0,0.0113691]
[1766697964017,0.05709045,88030.0,88016.0,0.00739]
[1766697964215,0.05709045,88030.0,88019.0,0.0113691]
[1766697964407,0.05709045,88030.0,88016.0,0.0187593]
[1766697965214,0.0113678,88029.0,88016.0,0.0187593]
[1766697966814,0.0113681,88027.0,88016.0,0.00739]
[1766697967615,0.06845825,88030.0,88016.0,0.00739]
[1766697968515,0.0113679,88028.0,88010.0,0.10238227]
[1766697969915,0.15947272,88030.0,88010.0,0.10238227]
[1766697970122,0.0113678,88029.0,88014.0,0.0113696]
[1766697980627,0.0113681,88027.0,88014.0,0.0113696]
[1766697981626,0.17084052,88030.0,88017.0,0.0113693]
[1766697981815,0.011368,88028.0,88010.0,0.10238227]
[1766697983233,0.011368,88028.0,88013.0,0.0113698]
[1766697984513,0.011368,88028.0,88015.0,0.0113695]
[1766697985426,0.0113682,88026.0,88011.0,0.01137]
[1766697985727,0.06845815,88030.0,88010.0,0.10238227]
[1766697985921,0.06845815,88030.0,88016.0,0.0113694]
[1766697990735,0.05709045,88030.0,88010.0,0.10238227]
[1766697992321,0.05709045,88030.0,88016.0,0.0113694]
[1766697994732,0.0113678,88029.0,88013.0,0.0113697]
[1766697996039,0.0113678,88029.0,88010.0,0.10238227]
[1766697997235,0.0113678,88029.0,88014.0,0.0113696]
[1766698010659,0.05709045,88030.0,88011.0,0.01137]
[1766698010862,0.0113688,88022.0,88008.0,0.1080104]
[1766698011053,0.0113688,88022.0,88008.0,0.1380104]
[1766698013157,0.05692,88024.0,88008.0,0.1380104]
[1766698016259,0.05692,88024.0,88008.0,0.1080104]
[1766698016561,0.05692,88024.0,88008.0,0.1380104]
[1766698017460,0.05692,88024.0,88009.0,0.00793]
[1766698017654,0.05692,88024.0,88010.0,0.0113702]
[1766698018451,0.0113697,88015.0,88000.0,0.0113715]
[1766698018650,0.0113699,88013.0,87997.0,0.0682918]
[1766698018857,0.0113697,88014.0,87998.0,0.0113718]
[1766698019057,0.0113697,88014.0,87998.0,0.0413718]
[1766698021366,0.01137,88012.0,87998.0,0.03]
[1766698022066,0.0682897,88015.0,87998.0,0.03]
[1766698022966,0.0113701,88012.0,87998.0,0.03]
[1766698030068,0.0113701,88012.0,87998.0,0.0413718]
[1766698031575,0.0682897,88015.0,88000.0,0.0113715]
[1766698031877,0.0682897,88015.0,88000.0,0.0413715]
[1766698040481,0.0113699,88013.0,88000.0,0.0413715]
[1766698040669,0.05692,88015.0,88000.0,0.03]
[1766698045280,0.0113702,88011.0,88000.0,0.03]
[1766698051386,0.0113704,88009.0,88000.0,0.03]
[1766698051686,0.05692,88015.0,88000.0,0.03]
[1766698051687,0.0113706,88007.0,88000.0,0.03]
[1766698051983,0.0113706,88007.0,87997.0,0.00017045]
[1766698052181,0.0113706,88007.0,87997.0,0.01]
[1766698052384,0.0113706,88007.0,87997.0,0.03]
[1766698052586,0.0113704,88010.0,87997.0,0.03]
[1766698055280,0.00017045,88012.0,87997.0,0.0413719]
[1766698056388,0.0113701,88011.0,87997.0,0.0413719]
[1766698060190,0.0113701,88011.0,87997.0,0.03]
[1766698061991,0.01154055,88012.0,87997.0,0.03]
[1766698062997,0.00017045,88012.0,87998.0,0.0113717]
[1766698063294,0.00017045,88012.0,87998.0,0.0413717]
[1766698063295,0.01154045,88012.0,87998.0,0.0413717]
[1766698063900,0.00017045,88012.0,88000.0,0.0113715]
[1766698064092,0.00017045,88012.0,88000.0,0.03]
[1766698071112,0.00017045,88012.0,88001.0,0.0113714]
[1766698071315,0.00017045,88012.0,87998.0,0.0113717]
[1766698071511,0.00017045,88012.0,87998.0,0.0413717]
[1766698074312,0.00017045,88012.0,88000.0,0.0113715]
[1766698074822,0.00017045,88012.0,88000.0,0.0413715]
[1766698075213,0.00017045,88012.0,88002.0,0.0113713]
[1766698077825,0.05692,88015.0,88002.0,0.0113713]
[1766698078210,0.05692,88015.0,88002.0,0.0413713]
[1766698082629,0.01137,88012.0,88002.0,0.03]
[1766698082921,0.01137,88012.0,87996.0,0.05692]
[1766698082922,0.1024271,88012.0,87996.0,0.05692]
[1766698083122,0.05692,88015.0,87996.0,0.08692]
[1766698083318,0.05692,88015.0,87997.0,0.0113719]
[1766698083518,0.05692,88015.0,87997.0,0.0413719]
[1766698084224,0.0113701,88012.0,87997.0,0.0413719]
[1766698087822,0.0113703,88010.0,87997.0,0.03]
[1766698091532,0.0113707,88007.0,87997.0,0.03]
[1766698093325,0.0113707,88007.0,87997.0,0.00168514]
[1766698093632,0.011371,88004.0,87995.0,0.00017045]
[1766698094334,0.05692,88007.0,87995.0,0.00017045]
[1766698095327,0.011371,88005.0,87995.0,0.00017045]
[1766698097535,0.05692,88007.0,87995.0,0.00017045]
[1766698099237,0.0113708,88006.0,87995.0,0.00017045]
[1766698112652,0.05692,88007.0,87995.0,0.00017045]
[1766698113847,0.05692,88007.0,87995.0,0.03017045]
[1766698114049,0.05692,88007.0,87998.0,0.0113717]
[1766698120756,0.05692,88007.0,87995.0,0.01154255]
[1766698126358,0.05692,88007.0,87999.0,0.0113716]
[1766698134462,0.00017045,88017.0,87999.0,0.03]
[1766698134662,0.05692,88022.0,87999.0,0.03]
[1766698134856,0.05692,88022.0,88005.0,0.0113708]
[1766698135872,0.05709045,88022.0,88007.0,0.0113706]
[1766698136070,0.0113688,88021.0,88004.0,0.011371]
[1766698136757,0.0113691,88019.0,88004.0,0.011371]
[1766698139171,0.0113691,88019.0,87998.0,0.05692]
[1766698139370,0.0113691,88019.0,87998.0,0.08692]
[1766698139567,0.0113691,88019.0,88003.0,0.0113711]
[1766698141779,0.0113691,88019.0,88005.0,0.0113708]
[1766698142072,0.06845925,88022.0,88005.0,0.0113708]
[1766698143577,0.011369,88020.0,88005.0,0.0113708]
[1766698143877,0.05709045,88022.0,88007.0,0.0113706]
[1766698144573,0.06137741,88021.0,88007.0,0.0113706]
[1766698144774,0.11846786,88022.0,88007.0,0.0113706]
[1766698145475,0.0113688,88021.0,88007.0,0.0113706]
[1766698148569,0.11846786,88022.0,88007.0,0.0113706]
[1766698152182,0.06137741,88021.0,88007.0,0.0113706]
[1766698152978,0.05709045,88022.0,88007.0,0.0113706]
[1766698153174,0.05709045,88022.0,87998.0,0.0682917]
[1766698153376,0.05709045,88022.0,87998.0,0.0982917]
[1766698154381,0.05709045,88022.0,88010.0,0.0113702]
[1766698156179,0.05709045,88022.0,88001.0,0.0113714]
[1766698156385,0.05692,88021.0,88013.0,0.0113698]
[1766698157688,0.05692,88021.0,88000.0,0.09668]
[1766698157689,0.05692,88021.0,88002.0,0.0113713]
[1766698157878,0.05692,88021.0,88011.0,0.0113701]
[1766698158579,0.05692,88021.0,88002.0,0.0113713]
[1766698158780,0.05692,88021.0,88002.0,0.0413713]
[1766698158977,0.05692,88021.0,88002.0,0.03]
[1766698159181,5e-08,88022.0,88017.0,0.0113692]
[1766698162498,0.05692,88025.0,88017.0,0.0113692]
[1766698168191,0.05692,88025.0,88012.0,0.00017045]
[1766698168396,0.05692,88025.0,88014.0,0.0113696]
[1766698168591,0.05692,88025.0,88016.0,0.0113694]
[1766698171095,0.05692,88025.0,88018.0,0.0113692]
[1766698172598,0.05692,88025.0,88015.0,0.0113695]
[1766698174498,0.05692,88025.0,88017.0,0.0113693]
[1766698181596,0.05692,88025.0,88012.0,0.00017045]
[1766698183100,0.05692,88025.0,88012.0,0.01154035]
[1766698184604,0.05692,88025.0,88014.0,0.0113697]
[1766698188004,0.05692,88025.0,88016.0,0.0113694]
[1766698190190,0.05692,88025.0,88013.0,0.0113697]
[1766698192008,0.05692,88025.0,88012.0,0.00017045]
[1766698193201,0.05692,88025.0,88016.0,0.0113694]
[1766698197612,0.05692,88025.0,88012.0,0.00017045]
[1766698197818,0.05692,88025.0,88015.0,0.0113696]
[1766698199817,0.05692,88025.0,88012.0,0.00017045]
[1766698200214,0.05692,88025.0,88015.0,0.0113696]
[1766698201315,0.05692,88025.0,88012.0,0.00017045]
[1766698202208,0.05692,88025.0,88015.0,0.0113696]
[1766698202414,0.05692,88025.0,88012.0,0.01154035]
[1766698202714,0.05692,88025.0,88003.0,0.011371]
[1766698203015,0.0113688,88022.0,88004.0,0.0113709]
[1766698203212,0.0113688,88022.0,88004.0,0.0413709]
[1766698203711,0.01153925,88022.0,88004.0,0.04154135]
[1766698204098,0.01153925,88022.0,88006.0,0.0113707]
[1766698204300,0.01153925,88022.0,88006.0,0.0413707]
[1766698209111,0.011369,88020.0,88006.0,0.03]
[1766698209314,0.10238794,88020.0,87996.0,0.04064921]
[1766698209617,0.10238794,88020.0,88001.0,0.0113713]
[1766698209618,0.0113692,88018.0,88001.0,0.0113713]
[1766698209816,0.0113692,88018.0,88003.0,0.0113711]
[1766698210017,0.0113692,88018.0,88003.0,0.0413711]
[1766698210218,0.05688,88019.0,88003.0,0.0413711]
[1766698210518,0.05688,88019.0,88005.0,0.0113708]
[1766698210719,0.05688,88019.0,88005.0,0.0413708]
[1766698214324,0.0682491,88019.0,88005.0,0.0413708]
[1766698233533,0.0113696,88015.0,88005.0,0.03]
[1766698233832,0.05688,88014.0,88005.0,0.03]
[1766698248556,0.05688,88014.0,88006.0,0.0113708]
[1766698248753,0.05688,88014.0,88006.0,0.0413708]
[1766698269172,4e-08,88014.0,88006.0,0.03]
[1766698269472,4e-08,88014.0,88011.0,0.01137]
[1766698270171,4e-08,88014.0,88009.0,0.0113703]
[1766698273576,4e-08,88014.0,88011.0,0.0113701]
[1766698274071,4e-08,88014.0,88008.0,0.0113704]
[1766698275474,4e-08,88014.0,88005.0,0.0113708]
[1766698275674,4e-08,88014.0,88005.0,0.0413708]
[1766698276381,4e-08,88014.0,88007.0,0.0113706]
[1766698284684,4e-08,88014.0,88004.0,0.0113709]
[1766698285182,4e-08,88014.0,88004.0,0.0413709]
[1766698286385,4e-08,88014.0,88004.0,0.03]
[1766698286886,0.0113694,88017.0,88004.0,0.03]
[1766698288485,0.0113696,88015.0,88004.0,0.03]
[1766698288981,0.0113699,88013.0,88004.0,0.03]
[1766698292982,0.0113711,88004.0,87986.0,0.04064921]
[1766698293183,0.0113706,88007.0,87991.0,0.0113726]
[1766698293375,0.0113706,88007.0,87991.0,0.0413726]
[1766698293569,0.0113706,88007.0,87993.0,0.0113724]
[1766698293884,0.0113706,88007.0,87993.0,0.0413724]
[1766698294673,0.0113706,88007.0,87993.0,0.03]
[1766698301487,0.0113706,88007.0,87994.0,0.0113723]
[1766698301673,0.0113706,88007.0,87994.0,0.0213723]
[1766698306294,0.0113706,88007.0,87994.0,0.01]
[1766698313091,0.0113709,88005.0,87994.0,0.01]
[1766698313297,0.0113709,88005.0,87991.0,0.01154305]
[1766698315005,0.0113709,88005.0,87991.0,0.00017045]
[1766698315399,0.0113709,88005.0,87992.0,0.0113725]
[1766698322101,0.0113706,88008.0,87992.0,0.0113725]
[1766698323002,0.0113706,88008.0,87992.0,0.0413725]
[1766698329499,0.0113708,88006.0,87992.0,0.0413725]
[1766698335014,0.0113706,88008.0,87992.0,0.0413725]
[1766698335215,0.0113706,88008.0,87994.0,0.0113723]
[1766698335810,0.00017045,88009.0,87996.0,0.011372]
[1766698337210,0.00017045,88009.0,88000.0,0.0113715]
[1766698337404,0.06143732,88018.0,88000.0,0.03]
[1766698337609,0.15356,88017.0,88000.0,0.03]
[1766698338409,0.15373045,88017.0,88000.0,0.012]
[1766698339117,0.15373045,88017.0,88000.0,0.03]
[1766698339317,0.15373045,88017.0,88004.0,0.0113709]
[1766698342020,0.00017045,88017.0,88004.0,0.0113709]
[1766698342224,0.05688,88016.0,88004.0,0.0113709]
[1766698344721,0.05688,88016.0,88006.0,0.0113707]
[1766698345624,0.05688,88016.0,88000.0,0.09580319]
[1766698345923,0.05688,88016.0,88000.0,0.12580319]
[1766698346423,0.05688,88016.0,88005.0,0.0113708]
[1766698347722,0.05688,88022.0,88006.0,0.10243249]
[1766698347926,0.05688,88022.0,88010.0,0.10243249]
[1766698348320,0.05688,88022.0,88014.0,0.0113697]
[1766698348719,0.00017045,88027.0,88016.0,0.0113694]
[1766698348923,0.05705045,88027.0,88016.0,0.0113694]
[1766698349730,0.05705045,88027.0,88018.0,0.0113692]
[1766698350030,0.05705045,88027.0,88009.0,0.09685045]
[1766698350031,0.05705045,88027.0,88020.0,0.0113689]
[1766698350727,5e-08,88027.0,88017.0,0.10243249]
[1766698350928,0.05688,88035.0,88029.0,0.0113677]
[1766698351123,0.05688,88035.0,88020.0,0.10243249]
[1766698351324,0.15356,88040.0,88020.0,0.22911249]
[1766698352131,0.15356,88040.0,88024.0,0.0113683]
[1766698352132,0.1649264,88040.0,88024.0,0.0113683]
[1766698352327,0.1649264,88040.0,88024.0,0.0413683]
[1766698357035,0.15356,88040.0,88026.0,0.0113681]
[1766698357249,0.15356,88040.0,88026.0,0.0413681]
[1766698363739,0.0113665,88039.0,88026.0,0.03]
[1766698365042,0.0113668,88037.0,88026.0,0.03]
[1766698365236,0.1649265,88040.0,88026.0,0.03]
[1766698365842,0.1649265,88040.0,88025.0,0.0113683]
[1766698366136,0.1649265,88040.0,88025.0,0.0413683]
[1766698368745,0.1649265,88040.0,88027.0,0.011368]
[1766698368945,0.1649265,88040.0,88027.0,0.041368]
[1766698370249,0.1649265,88040.0,88027.0,0.03]
[1766698370436,0.1649265,88040.0,88024.0,0.0113683]
[1766698370636,0.1649265,88040.0,88026.0,0.0113681]
[1766698370836,0.1649265,88040.0,88026.0,0.0413681]
[1766698375243,0.0113671,88035.0,88026.0,0.03]
[1766698375841,0.0113677,88030.0,88020.0,0.05688]
[1766698376245,0.05688,88034.0,88019.0,0.05688]
[1766698376644,0.0113676,88031.0,88019.0,0.05688]
[1766698377138,0.05705045,88034.0,88019.0,0.05688]
[1766698377345,0.0113685,88024.0,88009.0,0.0113703]
[1766698377540,0.0113688,88022.0,88010.0,0.15352]
[1766698377749,0.05688,88026.0,88010.0,0.00517046]
[1766698377949,0.09664,88029.0,88001.0,0.05688]
[1766698377950,0.05688,88025.0,88001.0,0.05688]
[1766698378154,0.05688,88025.0,88001.0,0.08688]
[1766698378353,0.01137,88012.0,87994.0,0.0213722]
[1766698378550,0.00017045,88012.0,87995.0,0.05688]
[1766698378756,0.0113702,88011.0,87995.0,0.08688]
[1766698379048,0.0113702,88011.0,87996.0,0.011372]
[1766698379253,0.00017045,88012.0,87996.0,0.041372]
[1766698380259,0.00017045,88012.0,87996.0,0.03]
[1766698380669,0.00017045,88012.0,88002.0,0.0113712]
[1766698380867,0.00017045,88012.0,88002.0,0.0413712]
[1766698395579,0.05688,88015.0,88002.0,0.0413712]
[1766698395978,0.0682496,88015.0,88002.0,0.03]
[1766698411986,4.5e-07,88017.0,88008.0,0.0113704]
[1766698412188,0.05688,88023.0,88011.0,0.01137]
[1766698412391,0.05688,88023.0,88011.0,0.04137]
[1766698412590,0.05688,88023.0,88011.0,0.03]
[1766698419801,0.05688,88023.0,88011.0,0.021]
[1766698420596,0.0682486,88023.0,88011.0,0.021]
[1766698422499,0.0682486,88023.0,88008.0,0.00017045]
[1766698422705,0.0682486,88023.0,88008.0,0.03017045]
[1766698423803,0.0682486,88023.0,88009.0,0.0113704]
[1766698424003,0.0682486,88023.0,88009.0,0.0413704]
[1766698426805,0.0682486,88023.0,88009.0,0.0233704]
[1766698427206,0.0682486,88023.0,88009.0,0.0347408]
[1766698427902,0.0682486,88023.0,88010.0,0.10238377]
[1766698428107,0.0682486,88023.0,88010.0,0.13238377]
[1766698432703,0.0113686,88023.0,88010.0,0.13238377]
[1766698434010,0.0113686,88023.0,88010.0,0.11138377]
[1766698436212,0.05688,88025.0,88011.0,0.0113701]
[1766698436410,0.0113685,88024.0,88011.0,0.0413701]
[1766698437217,0.0113687,88022.0,88011.0,0.03]
[1766698437419,0.0113687,88022.0,88008.0,0.01154085]
[1766698437917,0.0113687,88022.0,88008.0,0.04154085]
[1766698443426,0.0682484,88025.0,88010.0,0.0113702]
[1766698443721,0.0682484,88025.0,88010.0,0.0413702]
[1766698445526,0.0682484,88025.0,88010.0,0.14375397]
[1766698446030,0.0682484,88025.0,88010.0,0.13075397]
[1766698446220,0.0682484,88025.0,88010.0,0.14212417]
[1766698448322,0.0682484,88025.0,88010.0,0.11375397]
[1766698448627,0.0682484,88025.0,88012.0,0.01137]
[1766698448831,0.0682484,88025.0,88012.0,0.04137]
[1766698457241,0.05688,88025.0,88012.0,0.04137]
[1766698457741,0.05688,88025.0,88012.0,0.01137]
[1766698457944,0.05688,88025.0,88012.0,0.04137]
[1766698460240,0.05688,88025.0,88012.0,0.02337]
[1766698460740,0.05688,88025.0,88012.0,0.03474]
[1766698463554,0.05688,88025.0,88014.0,0.0113697]
[1766698463755,0.05688,88025.0,88014.0,0.0413697]
[1766698464454,0.05688,88025.0,88014.0,0.0113697]
[1766698466066,0.05688,88025.0,88008.0,0.05705045]
[1766698467352,0.011369,88020.0,88008.0,0.05705045]
[1766698467564,0.0113688,88022.0,88008.0,0.05705045]
[1766698468864,0.0113688,88022.0,88008.0,0.08705045]
[1766698471866,0.0113688,88022.0,88009.0,0.0113703]